fUST/lending_fUST_20260427
["ID","MTS","AMOUNT","RATE_DAILY","PERIOD"]
[421208760,1777255848198,-500.0,0.00019178,2]
[421208761,1777255848208,-340.0,0.00019178,2]
[421208762,1777255848218,-500.0,0.00019178,2]
[421208763,1777255848228,-500.0,0.00019178,2]
[421208764,1777255848238,-500.0,0.00019178,2]
[421208765,1777255848248,-1678.68,0.00019178,2]
[421208766,1777255848258,-500.0,0.00019178,2]
[421208767,1777255848267,-3346.11,0.00019178,2]
[421208768,1777255848277,-514.55967398,0.00019178,2]
[421208769,1777255848286,-500.0,0.00019178,2]
[421208770,1777255848296,-731.64,0.00019178,2]
[421208771,1777255848306,-500.0,0.00019178,2]
[421208772,1777255848315,-15264.26,0.00019178,2]
[421208773,1777255848324,-500.0,0.00019178,2]
[421208774,1777255848334,-2412.73,0.00019178,2]
[421208775,1777255848344,-500.0,0.00019178,2]
[421208776,1777255848353,-1104.915259,0.00019178,2]
[421208777,1777255848363,-1104.915259,0.00019178,2]
[421208778,1777255848372,-757.79,0.00019178,2]
[421208779,1777255848382,-1000.0,0.00019178,2]
[421208780,1777255848391,-1104.915259,0.00019178,2]
[421208781,1777255848401,-1000.0,0.00019178,2]
[421208782,1777255848410,-1000.0,0.00019178,2]
[421208783,1777255848420,-500.0,0.00019178,2]
[421208784,1777255848429,-1104.915257,0.00019178,2]
[421208785,1777255848439,-1000.0,0.00019178,2]
[421208786,1777255848448,-1000.0,0.00019178,2]
[421208787,1777255848458,-1000.0,0.00019178,2]
[421208788,1777255848468,-1212.24,0.00019178,2]
[421208789,1777255848478,-1000.0,0.00019178,2]
[421208790,1777255848488,-1000.0,0.00019178,2]
[421208791,1777255848498,-925.117288,0.00019178,2]
[421208792,1777255848507,-1000.0,0.00019178,2]
[421208793,1777255848518,-1000.0,0.00019178,2]
[421208794,1777255848527,-925.117288,0.00019178,2]
[421208795,1777255848538,-1000.0,0.00019178,2]
[421208796,1777255848547,-500.0,0.00019178,2]
[421208797,1777255848557,-1000.0,0.00019178,2]
[421208798,1777255848567,-925.117288,0.00019178,2]
[421208799,1777255848577,-1612.52,0.00019178,2]
[421208800,1777255848587,-1000.0,0.00019178,2]
[421208801,1777255848598,-758.27118172,0.00019178,2]
[421208802,1777255848608,-925.117285,0.00019178,2]
[421208803,1777255848618,-500.0,0.00019178,2]
[421208804,1777255848627,-500.0,0.00019178,2]
[421208805,1777255848637,-3687.72,0.00019178,2]
[421208806,1777255848647,-1318.8,0.00019178,2]
[421208807,1777255848656,-878.382017,0.00019178,2]
[421208808,1777255848667,-500.0,0.00019178,2]
[421208809,1777255848676,-500.0,0.00019178,2]
[421208810,1777255848686,-724.95,0.00019178,2]
[421208811,1777255848695,-1396.76,0.00019178,2]
[421208812,1777255848705,-510.25,0.00019178,2]
[421208813,1777255848714,-3124.85,0.00019178,2]
[421208814,1777255848724,-525.400138,0.00019178,2]
[421208815,1777255848735,-500.0,0.00019178,2]
[421208816,1777255848745,-525.400138,0.00019178,2]
[421208817,1777255848756,-878.382017,0.00019178,2]
[421208818,1777255848766,-551.06834972,0.00019178,2]
[421208819,1777255848778,-878.382017,0.00019178,2]
[421208820,1777255848788,-525.400138,0.00019178,2]
[421208821,1777255848798,-525.40014,0.00019178,2]
[421208822,1777255848808,-878.382026,0.00019178,2]
[421208823,1777255848819,-7697.63,0.00019178,2]
[421208824,1777255848829,-500.0,0.00019178,2]
[421208825,1777255848839,-500.0,0.00019178,2]
[421208826,1777255848849,-635.8,0.00019178,2]
[421208827,1777255848859,-500.0,0.00019178,2]
[421208828,1777255848869,-1589.98,0.00019178,2]
[421208829,1777255848878,-566.8,0.00019178,2]
[421208830,1777255848889,-797.34,0.00019178,2]
[421208831,1777255848899,-500.0,0.00019178,2]
[421208832,1777255848910,-500.0,0.00019178,2]
[421208833,1777255848920,-1908.34,0.00019178,2]
[421208834,1777255848930,-500.0,0.00019178,2]
[421208835,1777255848940,-500.0,0.00019178,2]
[421208836,1777255848951,-500.0,0.00019178,2]
[421208837,1777255848961,-1000.0,0.00019178,2]
[421208838,1777255848971,-4346.47,0.00019178,2]
[421208839,1777255848981,-9978.6,0.00019178,2]
[421208840,1777255848991,-500.0,0.00019178,2]
[421208841,1777255849000,-500.0,0.00019178,2]
[421208842,1777255849010,-500.0,0.00019178,2]
[421208843,1777255849020,-2303.55,0.00019178,2]
[421208844,1777255849031,-6528.21,0.00019178,2]
[421208845,1777255849041,-500.0,0.00019178,2]
[421208846,1777255849051,-931.66,0.00019178,2]
[421208847,1777255849060,-6410.37,0.00019178,2]
[421208848,1777255849070,-2695.9,0.00019178,2]
[421208849,1777255849079,-1853.27,0.00019178,2]
[421208850,1777255849089,-500.0,0.00019178,2]
[421208851,1777255849098,-5838.34,0.00019178,2]
[421208852,1777255849107,-9828.34,0.00019178,2]
[421208853,1777255849117,-2974.58,0.00019178,2]
[421208854,1777255849127,-545.47,0.00019178,2]
[421208855,1777255849136,-1830.46,0.00019178,2]
[421208856,1777255849146,-504.88115008,0.00019178,2]
[421208857,1777255849155,-500.0,0.00019178,2]
[421208858,1777255849166,-500.0,0.00019178,2]
[421208859,1777255849175,-500.0,0.00019178,2]
[421208860,1777255849184,-500.0,0.00019178,2]
[421208861,1777255849195,-500.0,0.00019178,2]
[421208862,1777255849205,-500.0,0.00019178,2]
[421208863,1777255849216,-500.0,0.00019178,2]
[421208864,1777255849228,-544.26094352,0.00019178,2]
[421208865,1777255849237,-828.67,0.00019178,2]
[421208866,1777255849247,-500.0,0.00019178,2]
[421208867,1777255849257,-500.0,0.00019178,2]
[421208868,1777255849267,-685.07,0.00019178,2]
[421208869,1777255849276,-653.32,0.00019178,2]
[421208870,1777255849286,-361.32359032,0.00019178,2]
[421208871,1777255849295,-500.0,0.00019178,2]
[421208872,1777255849305,-2256.61,0.00019178,2]
[421208873,1777255849315,-1485.43,0.00019178,2]
[421208874,1777255849324,-500.0,0.00019178,2]
[421208875,1777255849335,-547.02,0.00019178,2]
[421208876,1777255849345,-750.82,0.00019178,2]
[421208877,1777255849355,-5083.53,0.00019178,2]
[421208878,1777255849364,-1827.64,0.00019178,2]
[421208879,1777255849374,-5768.79,0.00019178,2]
[421208880,1777255849384,-6553.33,0.00019178,2]
[421208881,1777255849393,-500.0,0.00019178,2]
[421208882,1777255849403,-2138.07,0.00019178,2]
[421208883,1777255849413,-500.0,0.00019178,2]
[421208884,1777255849423,-1105.77,0.00019178,2]
[421208885,1777255849432,-500.0,0.00019178,2]
[421208886,1777255849442,-500.0,0.00019178,2]
[421208887,1777255849452,-500.0,0.00019178,2]
[421208888,1777255849462,-500.0,0.00019178,2]
[421208889,1777255849472,-500.0,0.00019178,2]
[421208890,1777255849482,-500.0,0.00019178,2]
[421208891,1777255849491,-500.0,0.00019178,2]
[421208892,1777255849501,-13111.4,0.00019178,2]
[421208893,1777255849511,-3199.96,0.00019178,2]
[421208894,1777255849520,-500.0,0.00019178,2]
[421208895,1777255849530,-10645.91,0.00019178,2]
[421208896,1777255849540,-500.0,0.00019178,2]
[421208897,1777255849550,-1009.76,0.00019178,2]
[421208898,1777255849560,-500.0,0.00019178,2]
[421208899,1777255849570,-1382.54,0.00019178,2]
[421208900,1777255849580,-1130.7,0.00019178,2]
[421208901,1777255849590,-1392.92,0.00019178,2]
[421208902,1777255849600,-3867.9,0.00019178,2]
[421208903,1777255849610,-641.21,0.00019178,2]
[421208904,1777255849620,-500.0,0.00019178,2]
[421208905,1777255849630,-1013.81,0.00019178,2]
[421208906,1777255849640,-500.0,0.00019178,2]
[421208907,1777255849650,-500.0,0.00019178,2]
[421208908,1777255849660,-500.0,0.00019178,2]
[421208909,1777255849670,-2679.82,0.00019178,2]
[421208910,1777255849679,-2822.94,0.00019178,2]
[421208911,1777255849689,-500.0,0.00019178,2]
[421208912,1777255849699,-500.0,0.00019178,2]
[421208913,1777255849708,-500.0,0.00019178,2]
[421208914,1777255849718,-2197.2,0.00019178,2]
[421208915,1777255849728,-526.91123451,0.00019178,2]
[421208916,1777255849738,-3228.49,0.00019178,2]
[421208917,1777255849748,-6982.35,0.00019178,2]
[421208918,1777255849759,-500.0,0.00019178,2]
[421208919,1777255849769,-556.11243781,0.00019178,2]
[421208920,1777255849779,-967.41,0.00019178,2]
[421208921,1777255849789,-743.55,0.00019178,2]
[421208922,1777255849799,-1519.58,0.00019178,2]
[421208923,1777255849809,-500.0,0.00019178,2]
[421208924,1777255849818,-1374.52,0.00019178,2]
[421208925,1777255849829,-2313.23,0.00019178,2]
[421208926,1777255849838,-500.0,0.00019178,2]
[421208927,1777255849848,-1290.37,0.00019178,2]
[421208928,1777255849858,-1081.83,0.00019178,2]
[421208929,1777255849868,-2179.64,0.00019178,2]
[421208930,1777255849879,-3237.52,0.00019178,2]
[421208931,1777255849889,-2500.16,0.00019178,2]
[421208932,1777255849898,-43264.5,0.00019178,2]
[421208933,1777255849908,-500.0,0.00019178,2]
[421208934,1777255849918,-500.0,0.00019178,2]
[421208935,1777255849928,-158.12479532,0.00019178,2]
[421208936,1777255849938,-500.0,0.00019178,2]
[421208937,1777255849948,-500.0,0.00019178,2]
[421208938,1777255849958,-558.86544839,0.00019178,2]
[421208939,1777255849967,-522.0,0.00019178,2]
[421208940,1777255849977,-1049.47,0.00019178,2]
[421208941,1777255849987,-1484.77,0.00019178,2]
[421208942,1777255849997,-14991.96,0.00019178,2]
[421208943,1777255850007,-2125.42,0.00019178,2]
[421208944,1777255850017,-3985.77,0.00019178,2]
[421208945,1777255850026,-500.0,0.00019178,2]
[421208946,1777255850036,-1010.65,0.00019178,2]
[421208947,1777255850046,-1199.54,0.00019178,2]
[421208948,1777255850056,-3476.96,0.00019178,2]
[421208949,1777255850066,-500.0,0.00019178,2]
[421208950,1777255850076,-500.73289469,0.00019178,2]
[421208951,1777255850085,-15014.39,0.00019178,2]
[421208952,1777255850095,-500.0,0.00019178,2]
[421208953,1777255850105,-4882.42,0.00019178,2]
[421208954,1777255850115,-16056.84,0.00019178,2]
[421208955,1777255850125,-6864.04996027,0.00019178,2]
[421208956,1777255850135,-1561.0,0.00019178,2]
[421208957,1777255850144,-792.0,0.000192,2]
[421208958,1777255850154,-927.27566595,0.00019217,2]
[421208959,1777255850165,-155.31689184,0.00019236,2]
[421208960,1777255850175,-649.0,0.00019236,2]
[421208961,1777255850184,-649.0,0.00019236,2]
[421208962,1777255850195,-649.0,0.00019236,2]
[421208963,1777255850204,-649.0,0.00019236,2]
[421208964,1777255850214,-649.0,0.00019236,2]
[421208965,1777255850224,-611.78461771,0.00019236,2]
[421208966,1777255850234,-961.58486559,0.00019272,2]
[421208967,1777255850244,-997.16350561,0.00019327,2]
[421208968,1777255850254,-6397.56769887,0.00019352,2]
[421208969,1777255850264,-152.0,0.00019392,7]
[421208970,1777255850274,-152.0,0.00019392,7]
[421208971,1777255850284,-152.0,0.00019392,7]
[421208972,1777255850294,-576.27069793,0.000194,2]
[421208973,1777255850303,-1384.02711954,0.000194,2]
[421208974,1777255850314,-243.58394529,0.00019452,2]
[421208975,1777255850323,-500.0,0.00019452,2]
[421208976,1777255850333,-500.0,0.00019452,2]
[421208977,1777255850343,-500.0,0.00019452,2]
[421208978,1777255850353,-500.0,0.00019452,2]
[421208979,1777255850363,-500.0,0.00019452,2]
[421208980,1777255850374,-1442.79,0.00019452,2]
[421208981,1777255850384,-500.0,0.00019452,2]
[421208982,1777255850394,-909.38,0.00019452,2]
[421208983,1777255850404,-500.0,0.00019452,2]
[421208984,1777255850414,-500.0,0.00019452,2]
[421208985,1777255850424,-613.97,0.00019452,2]
[421208986,1777255850434,-514.78322068,0.00019452,2]
[421208987,1777255850444,-500.0,0.00019452,2]
[421208988,1777255850454,-2482.84,0.00019452,2]
[421208989,1777255850463,-1454.35,0.00019452,2]
[421208990,1777255850473,-500.0,0.00019452,2]
[421208991,1777255850484,-383.00178245,0.00019452,2]
[421208992,1777255850494,-500.0,0.00019452,2]
[421208993,1777255850504,-511.38148733,0.00019452,2]
[421208994,1777255850514,-500.0,0.00019452,2]
[421208995,1777255850524,-156.17649361,0.00019452,2]
[421208996,1777255850534,-500.0,0.00019452,2]
[421208997,1777255850544,-500.0,0.00019452,2]
[421208998,1777255850554,-554.03,0.00019452,2]
[421208999,1777255850564,-1069.56,0.00019452,2]
[421209000,1777255850574,-500.0,0.00019452,2]
[421209001,1777255850584,-572.61,0.00019452,2]
[421209002,1777255850595,-984.73,0.00019452,2]
[421209003,1777255850605,-500.0,0.00019452,2]
[421209004,1777255850615,-500.0,0.00019452,2]
[421209005,1777255850625,-2466.21,0.00019452,2]
[421209006,1777255850635,-500.0,0.00019452,2]
[421209007,1777255850645,-500.0,0.00019452,2]
[421209008,1777255850655,-500.0,0.00019452,2]
[421209009,1777255850665,-500.0,0.00019452,2]
[421209010,1777255850675,-671.8,0.00019452,2]
[421209011,1777255850892,-500.0,0.00019452,2]
[421209012,1777255850910,-500.0,0.00019452,2]
[421209013,1777255850919,-500.0,0.00019452,2]
[421209014,1777255850929,-1137.42,0.00019452,2]
[421209015,1777255850939,-1948.51,0.00019452,2]
[421209016,1777255850948,-2492.75,0.00019452,2]
[421209017,1777255850958,-550.39944001,0.00019452,2]
[421209018,1777255850967,-637.35,0.00019452,2]
[421209019,1777255850977,-2312.06,0.00019452,2]
[421209020,1777255850986,-500.0,0.00019452,2]
[421209021,1777255850996,-500.0,0.00019452,2]
[421209022,1777255851006,-500.0,0.00019452,2]
[421209023,1777255851015,-500.0,0.00019452,2]
[421209024,1777255851025,-500.0,0.00019452,2]
[421209025,1777255851035,-500.0,0.00019452,2]
[421209026,1777255851045,-986.26,0.00019452,2]
[421209027,1777255851054,-1425.96,0.00019452,2]
[421209028,1777255851064,-500.0,0.00019452,2]
[421209029,1777255851073,-1390.58,0.00019452,2]
[421209030,1777255851083,-474.04141743,0.00019452,2]
[421209031,1777255851093,-500.0,0.00019452,2]
[421209032,1777255851102,-1412.51,0.00019452,2]
[421209033,1777255851112,-531.81770671,0.00019452,2]
[421209034,1777255851122,-1324.41,0.00019452,2]
[421209035,1777255851131,-497.72646063,0.00019452,2]
[421209036,1777255851141,-1119.49,0.00019452,2]
[421209037,1777255851152,-1371.06,0.00019452,2]
[421209038,1777255851162,-500.0,0.00019452,2]
[421209039,1777255851172,-500.0,0.00019452,2]
[421209040,1777255851182,-500.0,0.00019452,2]
[421209041,1777255851191,-756.79,0.00019452,2]
[421209042,1777255851201,-155.3301782,0.00019452,2]
[421209043,1777255851211,-175.23406126,0.00019452,2]
[421209044,1777255851220,-500.0,0.00019452,2]
[421209045,1777255851230,-500.0,0.00019452,2]
[421209046,1777255851240,-644.94,0.00019452,2]
[421209047,1777255851250,-500.0,0.00019452,2]
[421209048,1777255851260,-5385.76,0.00019452,2]
[421209049,1777255851269,-500.0,0.00019452,2]
[421209050,1777255851279,-500.0,0.00019452,2]
[421209051,1777255851288,-2045.82,0.00019452,2]
[421209052,1777255851297,-500.0,0.00019452,2]
[421209053,1777255851307,-500.0,0.00019452,2]
[421209054,1777255851316,-500.0,0.00019452,2]
[421209055,1777255851325,-290.14826819,0.00019452,2]
[421209056,1777255851334,-623.63,0.00019452,2]
[421209057,1777255851344,-500.0,0.00019452,2]
[421209058,1777255851353,-500.0,0.00019452,2]
[421209059,1777255851363,-513.86,0.00019452,2]
[421209060,1777255851372,-500.0,0.00019452,2]
[421209061,1777255851382,-508.65,0.00019452,2]
[421209062,1777255851391,-500.0,0.00019452,2]
[421209063,1777255851404,-500.0,0.00019452,2]
[421209064,1777255851414,-500.0,0.00019452,2]
[421209065,1777255851424,-1053.73,0.00019452,2]
[421209066,1777255851433,-1771.86,0.00019452,2]
[421209067,1777255851442,-500.0,0.00019452,2]
[421209068,1777255851452,-500.0,0.00019452,2]
[421209069,1777255851461,-579.06114297,0.00019452,2]
[421209070,1777255851470,-500.0,0.00019452,2]
[421209071,1777255851480,-500.0,0.00019452,2]
[421209072,1777255851489,-864.3,0.00019452,2]
[421209073,1777255851499,-534.36,0.00019452,2]
[421209074,1777255851508,-500.0,0.00019452,2]
[421209075,1777255851518,-500.0,0.00019452,2]
[421209076,1777255851527,-997.56,0.00019452,2]
[421209077,1777255851537,-692.91,0.00019452,2]
[421209078,1777255851547,-500.0,0.00019452,2]
[421209079,1777255851557,-500.0,0.00019452,2]
[421209080,1777255851566,-500.0,0.00019452,2]
[421209081,1777255851575,-1236.81,0.00019452,2]
[421209082,1777255851585,-788.65,0.00019452,2]
[421209083,1777255851594,-500.0,0.00019452,2]
[421209084,1777255851604,-810.74,0.00019452,2]
[421209085,1777255851614,-574.53,0.00019452,2]
[421209086,1777255851624,-500.0,0.00019452,2]
[421209087,1777255851633,-1899.66,0.00019452,2]
[421209088,1777255851642,-500.0,0.00019452,2]
[421209089,1777255851652,-861.22,0.00019452,2]
[421209090,1777255851661,-500.0,0.00019452,2]
[421209091,1777255851671,-886.6,0.00019452,2]
[421209092,1777255851680,-785.53,0.00019452,2]
[421209093,1777255851690,-563.71,0.00019452,2]
[421209094,1777255851699,-500.0,0.00019452,2]
[421209095,1777255851708,-500.0,0.00019452,2]
[421209096,1777255851718,-942.1,0.00019452,2]
[421209097,1777255851727,-1000.0,0.00019452,2]
[421209098,1777255851737,-3262.74,0.00019452,2]
[421209099,1777255851747,-3513.08,0.00019452,2]
[421209100,1777255851756,-500.0,0.00019452,2]
[421209101,1777255851766,-500.0,0.00019452,2]
[421209102,1777255851775,-1132.22,0.00019452,2]
[421209103,1777255851784,-500.0,0.00019452,2]
[421209104,1777255851794,-500.0,0.00019452,2]
[421209105,1777255851804,-500.0,0.00019452,2]
[421209106,1777255851814,-500.0,0.00019452,2]
[421209107,1777255851823,-500.0,0.00019452,2]
[421209108,1777255851833,-500.0,0.00019452,2]
[421209109,1777255851843,-500.0,0.00019452,2]
[421209110,1777255851852,-500.0,0.00019452,2]
[421209111,1777255851862,-500.0,0.00019452,2]
[421209112,1777255851871,-500.0,0.00019452,2]
[421209113,1777255851882,-199.906485,0.00019452,2]
[421209114,1777255851891,-1678.68,0.00019452,2]
[421209115,1777255851900,-500.0,0.00019452,2]
[421209116,1777255851909,-3346.11,0.00019452,2]
[421209117,1777255851919,-500.0,0.00019452,2]
[421209118,1777255851928,-731.64,0.00019452,2]
[421209119,1777255851938,-500.0,0.00019452,2]
[421209120,1777255851947,-15264.26,0.00019452,2]
[421209121,1777255851957,-500.0,0.00019452,2]
[421209122,1777255851967,-2412.73,0.00019452,2]
[421209123,1777255851976,-500.0,0.00019452,2]
[421209124,1777255851985,-757.79,0.00019452,2]
[421209125,1777255851995,-500.0,0.00019452,2]
[421209126,1777255852004,-1212.24,0.00019452,2]
[421209127,1777255852014,-500.0,0.00019452,2]
[421209128,1777255852024,-1612.52,0.00019452,2]
[421209129,1777255852034,-500.0,0.00019452,2]
[421209130,1777255852043,-500.0,0.00019452,2]
[421209131,1777255852053,-3687.72,0.00019452,2]
[421209132,1777255852062,-1318.8,0.00019452,2]
[421209133,1777255852073,-500.0,0.00019452,2]
[421209134,1777255852082,-500.0,0.00019452,2]
[421209135,1777255852092,-724.95,0.00019452,2]
[421209136,1777255852102,-1396.76,0.00019452,2]
[421209137,1777255852111,-510.25,0.00019452,2]
[421209138,1777255852121,-3124.85,0.00019452,2]
[421209139,1777255852130,-500.0,0.00019452,2]
[421209140,1777255852140,-7697.63,0.00019452,2]
[421209141,1777255852149,-500.0,0.00019452,2]
[421209142,1777255852159,-500.0,0.00019452,2]
[421209143,1777255852169,-635.8,0.00019452,2]
[421209144,1777255852179,-500.0,0.00019452,2]
[421209145,1777255852188,-1589.98,0.00019452,2]
[421209146,1777255852198,-566.8,0.00019452,2]
[421209147,1777255852207,-797.34,0.00019452,2]
[421209148,1777255852218,-500.0,0.00019452,2]
[421209149,1777255852227,-500.0,0.00019452,2]
[421209150,1777255852236,-1908.34,0.00019452,2]
[421209151,1777255852246,-500.0,0.00019452,2]
[421209152,1777255852255,-500.0,0.00019452,2]
[421209153,1777255852265,-500.0,0.00019452,2]
[421209154,1777255852275,-1000.0,0.00019452,2]
[421209155,1777255852284,-4346.47,0.00019452,2]
[421209156,1777255852294,-9978.6,0.00019452,2]
[421209157,1777255852304,-500.0,0.00019452,2]
[421209158,1777255852314,-500.0,0.00019452,2]
[421209159,1777255852324,-2303.55,0.00019452,2]
[421209160,1777255852334,-500.0,0.00019452,2]
[421209161,1777255852344,-6528.21,0.00019452,2]
[421209162,1777255852355,-500.0,0.00019452,2]
[421209163,1777255852365,-931.66,0.00019452,2]
[421209164,1777255852376,-6410.37,0.00019452,2]
[421209165,1777255852386,-2695.9,0.00019452,2]
[421209166,1777255852397,-1853.27,0.00019452,2]
[421209167,1777255852407,-500.0,0.00019452,2]
[421209168,1777255852418,-5838.34,0.00019452,2]
[421209169,1777255852428,-9828.34,0.00019452,2]
[421209170,1777255852438,-2974.58,0.00019452,2]
[421209171,1777255852448,-545.47,0.00019452,2]
[421209172,1777255852458,-1830.46,0.00019452,2]
[421209173,1777255852469,-500.0,0.00019452,2]
[421209174,1777255852479,-500.0,0.00019452,2]
[421209175,1777255852489,-500.0,0.00019452,2]
[421209176,1777255852499,-500.0,0.00019452,2]
[421209177,1777255852509,-500.0,0.00019452,2]
[421209178,1777255852519,-500.0,0.00019452,2]
[421209179,1777255852529,-828.67,0.00019452,2]
[421209180,1777255852539,-500.0,0.00019452,2]
[421209181,1777255852549,-500.0,0.00019452,2]
[421209182,1777255852559,-685.07,0.00019452,2]
[421209183,1777255852569,-653.32,0.00019452,2]
[421209184,1777255852580,-500.0,0.00019452,2]
[421209185,1777255852592,-2256.61,0.00019452,2]
[421209186,1777255852604,-1485.43,0.00019452,2]
[421209187,1777255852615,-500.0,0.00019452,2]
[421209188,1777255852626,-547.02,0.00019452,2]
[421209189,1777255852637,-750.82,0.00019452,2]
[421209190,1777255852648,-5083.53,0.00019452,2]
[421209191,1777255852658,-1827.64,0.00019452,2]
[421209192,1777255852671,-5768.79,0.00019452,2]
[421209193,1777255852682,-6553.33,0.00019452,2]
[421209194,1777255852692,-500.0,0.00019452,2]
[421209195,1777255852703,-2138.07,0.00019452,2]
[421209196,1777255852713,-500.0,0.00019452,2]
[421209197,1777255852723,-1105.77,0.00019452,2]
[421209198,1777255852734,-500.0,0.00019452,2]
[421209199,1777255852744,-500.0,0.00019452,2]
[421209200,1777255852755,-500.0,0.00019452,2]
[421209201,1777255852766,-500.0,0.00019452,2]
[421209202,1777255852777,-500.0,0.00019452,2]
[421209203,1777255852787,-500.0,0.00019452,2]
[421209204,1777255852797,-500.0,0.00019452,2]
[421209205,1777255852807,-13111.4,0.00019452,2]
[421209206,1777255852817,-3199.96,0.00019452,2]
[421209207,1777255852827,-500.0,0.00019452,2]
[421209208,1777255852838,-10645.91,0.00019452,2]
[421209209,1777255852848,-500.0,0.00019452,2]
[421209210,1777255852858,-1009.76,0.00019452,2]
[421209211,1777255852867,-500.0,0.00019452,2]
[421209212,1777255852878,-1382.54,0.00019452,2]
[421209213,1777255852888,-1130.7,0.00019452,2]
[421209214,1777255852898,-1392.92,0.00019452,2]
[421209215,1777255852908,-3867.9,0.00019452,2]
[421209216,1777255852921,-641.21,0.00019452,2]
[421209217,1777255852931,-500.0,0.00019452,2]
[421209218,1777255852941,-1013.81,0.00019452,2]
[421209219,1777255852952,-419.07301789,0.00019452,2]
[421209220,1777255852962,-500.0,0.00019452,2]
[421209221,1777255852973,-500.0,0.00019452,2]
[421209222,1777255852983,-2679.82,0.00019452,2]
[421209223,1777255852994,-2822.94,0.00019452,2]
[421209224,1777255853004,-500.0,0.00019452,2]
[421209225,1777255853014,-500.0,0.00019452,2]
[421209226,1777255853025,-500.0,0.00019452,2]
[421209227,1777255853035,-2197.2,0.00019452,2]
[421209228,1777255853044,-3228.49,0.00019452,2]
[421209229,1777255853055,-6982.35,0.00019452,2]
[421209230,1777255853065,-500.0,0.00019452,2]
[421209231,1777255853076,-967.41,0.00019452,2]
[421209232,1777255853086,-743.55,0.00019452,2]
[421209233,1777255853096,-1519.58,0.00019452,2]
[421209234,1777255853106,-500.0,0.00019452,2]
[421209235,1777255853116,-1374.52,0.00019452,2]
[421209236,1777255853126,-2313.23,0.00019452,2]
[421209237,1777255853136,-500.0,0.00019452,2]
[421209238,1777255853146,-1290.37,0.00019452,2]
[421209239,1777255853156,-1081.83,0.00019452,2]
[421209240,1777255853166,-2179.64,0.00019452,2]
[421209241,1777255853176,-3237.52,0.00019452,2]
[421209242,1777255853187,-2500.16,0.00019452,2]
[421209243,1777255853197,-43264.5,0.00019452,2]
[421209244,1777255853208,-500.0,0.00019452,2]
[421209245,1777255853219,-500.0,0.00019452,2]
[421209246,1777255853229,-500.0,0.00019452,2]
[421209247,1777255853288,-420.3251563,0.00019452,2]
[421209248,1777255853299,-522.0,0.00019452,2]
[421209249,1777255853310,-1049.47,0.00019452,2]
[421209250,1777255853320,-14991.96,0.00019452,2]
[421209251,1777255853330,-1484.77,0.00019452,2]
[421209252,1777255853341,-2125.42,0.00019452,2]
[421209253,1777255853350,-3985.77,0.00019452,2]
[421209254,1777255853360,-500.0,0.00019452,2]
[421209255,1777255853370,-1010.65,0.00019452,2]
[421209256,1777255853380,-1199.54,0.00019452,2]
[421209257,1777255853389,-3476.96,0.00019452,2]
[421209258,1777255853399,-500.0,0.00019452,2]
[421209259,1777255853408,-15014.39,0.00019452,2]